fUSD/lending_fUSD_20250818
["ID","MTS","AMOUNT","RATE_DAILY","PERIOD"]
[380013725,1755475208227,-269.76566611,0.0001045,2]
[380013726,1755475213455,-185.48,0.0001045,2]
[380013728,1755475220752,-10.95174577,0.0001045,2]
[380013729,1755475220923,-128.09650846,0.0001045,2]
[380013730,1755475224937,151.0,0.00024,120]
[380013731,1755475225802,151.0,0.00024,120]
[380013732,1755475226045,151.0,0.00024,120]
[380013733,1755475226296,151.0,0.00024,120]
[380013734,1755475226451,151.0,0.00024,120]
[380013735,1755475226802,151.0,0.00024,120]
[380013736,1755475226996,151.0,0.00024,120]
[380013737,1755475227115,1218.0,0.00024,120]
[380013738,1755475227758,151.0,0.00024,120]
[380013739,1755475228694,160.82002071,0.0001,2]
[380013740,1755475232557,151.0,0.00024,120]
[380013741,1755475232899,151.0,0.00024,120]
[380013742,1755475233663,151.0,0.00024,120]
[380013743,1755475235268,151.0,0.00024,120]
[380013744,1755475235901,151.0,0.00024,120]
[380013745,1755475239637,151.0,0.00024,120]
[380013746,1755475239677,150.74076798,0.00010449,2]
[380013747,1755475241167,151.0,0.00024,120]
[380013748,1755475244099,-40.88589513,0.00010449,2]
[380013749,1755475245665,-78.139003,0.00010449,2]
[380013750,1755475247050,151.0,0.00024,120]
[380013751,1755475249850,151.0,0.00024,120]
[380013752,1755475252656,151.0,0.00024,120]
[380013753,1755475256021,151.0,0.00024,120]
[380013754,1755475260154,151.0,0.00024,120]
[380013755,1755475264741,151.0,0.00024,120]
[380013756,1755475267412,151.0,0.00024,120]
[380013757,1755475268251,151.0,0.00024,120]
[380013758,1755475271428,151.0,0.00024,120]
[380013759,1755475272014,151.0,0.00024,120]
[380013760,1755475275864,185.6,9.813e-05,2]
[380013761,1755475276808,151.0,0.00024,120]
[380013762,1755475279862,151.0,0.00024,120]
[380013763,1755475280717,151.0,0.00024,120]
[380013764,1755475283856,151.0,0.00024,120]
[380013765,1755475285642,151.0,0.00024,120]
[380013766,1755475288305,151.0,0.00024,120]
[380013767,1755475290955,151.0,0.00024,120]
[380013768,1755475294763,151.0,0.00024,120]
[380013769,1755475296560,151.0,0.00024,120]
[380013770,1755475300242,270.04308365,0.00024,120]
[380013771,1755475300807,151.0,0.00024,120]
[380013772,1755475306062,151.0,0.00024,120]
[380013775,1755475327084,-150.0,0.0001045,2]
[380013776,1755475352581,155.31,9.777e-05,2]
[380013777,1755475352748,155.31,9.785e-05,2]
[380013778,1755475352866,155.31,9.793e-05,2]
[380013779,1755475353440,155.31,9.802e-05,2]
[380013780,1755475353843,155.31,9.81e-05,2]
[380013781,1755475354073,155.31,9.818e-05,2]
[380013782,1755475354269,155.31,9.826e-05,2]
[380013783,1755475354448,155.31,9.834e-05,2]
[380013784,1755475354592,155.31,9.842e-05,2]
[380013785,1755475355178,155.31,9.85e-05,2]
[380013786,1755475355377,155.31,9.859e-05,2]
[380013787,1755475355512,155.31,9.867e-05,2]
[380013788,1755475355680,155.31,9.875e-05,2]
[380013789,1755475393553,170.0,9.836e-05,7]
[380013790,1755475521115,151.0,0.00024,120]
[380013791,1755475524346,151.0,0.00024,120]
[380013792,1755475524928,151.0,0.00024,120]
[380013793,1755475545103,153.0,0.00024,120]
[380013794,1755475545444,153.0,0.00024,120]
[380013796,1755475605099,1000.0,9.782e-05,2]
[380013797,1755475636913,806.31130072,0.00012796,7]
[380013799,1755475823164,151.0,0.00024,120]
[380013800,1755475823781,151.0,0.00024,120]
[380013801,1755475825583,1218.0,0.00024,120]
[380013802,1755475826174,1218.0,0.00024,120]
[380013812,1755475832547,196.53424199,0.00024,120]
[380013820,1755475832949,-185.48,0.00010446,2]
[380013821,1755475832959,-121.40097256,0.00010448,2]
[380013864,1755475839104,-128.59902744,0.00010448,2]
[380013865,1755475839114,-151.0,0.0001045,2]
[380013866,1755475839123,-500.0,0.00010685,2]
[380013867,1755475839133,-315.0,0.00010699,2]
[380013868,1755475839143,-300.0,0.00010699,2]
[380013869,1755475839152,-1200.0,0.00010699,2]
[380013870,1755475839162,-593.32,0.000107,2]
[380013871,1755475839172,-408.15,0.000107,2]
[380013872,1755475839181,-468.62,0.000107,2]
[380013873,1755475839191,-1596.98,0.000107,2]
[380013874,1755475839200,-555.45258617,0.000107,2]
[380013875,1755475839210,-2500.0,0.000107,2]
[380013876,1755475839220,-150.0,0.00010725,2]
[380013877,1755475839230,-150.0,0.00010736,2]
[380013878,1755475839240,-151.0,0.00010747,2]
[380013879,1755475839249,-500.0,0.00010747,2]
[380013881,1755475839259,-500.0,0.00010747,2]
[380013882,1755475839268,-500.0,0.00010747,2]
[380013884,1755475839278,-500.0,0.00010747,2]
[380013886,1755475839287,-500.0,0.00010747,2]
[380013888,1755475839297,-500.0,0.00010747,2]
[380013890,1755475839307,-500.0,0.00010747,2]
[380013892,1755475839316,-500.0,0.00010747,2]
[380013894,1755475839326,-500.0,0.00010747,2]
[380013896,1755475839336,-500.0,0.00010747,2]
[380013898,1755475839346,-302.0,0.00010747,2]
[380013900,1755475839356,-500.0,0.00010747,2]
[380013902,1755475839366,-500.0,0.00010747,2]
[380013904,1755475839376,-500.0,0.00010747,2]
[380013906,1755475839386,-496.85719145,0.00010747,2]
[380013908,1755475839396,-7566.62,0.00010753,2]
[380013910,1755475839405,-27036.63,0.00010753,2]
[380013912,1755475839415,-150.0,0.0001076,2]
[380013914,1755475839425,-150.0,0.00010788,2]
[380013916,1755475839435,-150.0,0.00010788,2]
[380013918,1755475839445,-190431.6677,0.000108,2]
[380013920,1755475839455,-1000.0,0.000108,2]
[380013922,1755475839464,-798.49,0.000108,2]
[380013924,1755475839474,-150.0,0.00010818,2]
[380013926,1755475839485,-150.0,0.00010864,2]
[380013928,1755475839494,-150.0,0.00010866,2]
[380013930,1755475839504,-290.0,0.00010867,2]
[380013932,1755475839513,-459.9313,0.00010877,2]
[380013934,1755475839523,-150.0,0.00010883,2]
[380013936,1755475839536,-150.0,0.0001089,2]
[380013938,1755475839545,-150.0,0.0001089,2]
[380013941,1755475839554,-3466.15301,0.0001089,2]
[380013943,1755475839564,-150.0,0.00010891,2]
[380013945,1755475839574,-150.0,0.00010893,2]
[380013947,1755475839584,-150.0,0.00010896,2]
[380013949,1755475839593,-150.0,0.00010896,2]
[380013951,1755475839602,-1249.57726434,0.000109,2]
[380013953,1755475839614,-840.45046318,0.000109,2]
[380013955,1755475839625,-21353.3953931,0.000109,2]
[380013956,1755475839634,-476.11230213,0.000109,2]
[380013959,1755475839644,-472.2103218,0.000109,2]
[380013961,1755475839654,-366.10801959,0.000109,2]
[380013963,1755475839664,-366.10801955,0.000109,2]
[380013965,1755475839673,-366.10801955,0.000109,2]
[380013966,1755475839683,-366.10801955,0.000109,2]
[380013969,1755475839694,-366.10801955,0.000109,2]
[380013970,1755475839705,-366.10801955,0.000109,2]
[380013972,1755475839715,-366.10801955,0.000109,2]
[380013975,1755475839726,-366.10801955,0.000109,2]
[380013976,1755475839735,-2753.41442176,0.000109,2]
[380013978,1755475839745,-150.0,0.00010901,2]
[380013980,1755475839755,-464.0,0.00010904,2]
[380013983,1755475839764,-840.45046314,0.00010911,2]
[380013984,1755475839775,-840.45046314,0.00010923,2]
[380013987,1755475839785,-150.0,0.00010931,2]
[380013989,1755475839794,-840.45046314,0.00010934,2]
[380013990,1755475839804,-150.0,0.0001094,2]
[380013993,1755475839813,-840.45046314,0.00010945,2]
[380013995,1755475839823,-840.45046314,0.00010957,2]
[380013997,1755475839832,-200.0,0.00010959,2]
[380013999,1755475839842,-4924.71,0.00010959,2]
[380014000,1755475839851,-150.0,0.00010959,2]
[380014002,1755475839860,-150.0,0.00010959,2]
[380014005,1755475839870,-676.0,0.00010959,2]
[380014007,1755475839880,-150.0,0.00010965,2]
[380014008,1755475839889,-150.0,0.00010965,2]
[380014011,1755475839899,-150.0,0.00010966,2]
[380014012,1755475839908,-150.0,0.00010967,2]
[380014014,1755475839918,-840.45046314,0.00010968,2]
[380014017,1755475839927,-500.0,0.00010973,2]
[380014018,1755475839937,-150.63449858,0.00010973,2]
[380014021,1755475839946,-500.0,0.00010973,2]
[380014023,1755475839956,-500.0,0.00010973,2]
[380014025,1755475839968,-527.58399453,0.00010973,2]
[380014027,1755475839980,-500.0,0.00010973,2]
[380014029,1755475839989,-500.0,0.00010973,2]
[380014031,1755475839998,-500.0,0.00010973,2]
[380014033,1755475840008,-294.10899497,0.00010973,2]
[380014035,1755475840017,-500.0,0.00010973,2]
[380014037,1755475840026,-500.0,0.00010973,2]
[380014039,1755475840035,-500.0,0.00010973,2]
[380014041,1755475840046,-500.0,0.00010973,2]
[380014044,1755475840055,-500.0,0.00010973,2]
[380014046,1755475840065,-500.0,0.00010973,2]
[380014048,1755475840074,-500.0,0.00010973,2]
[380014050,1755475840083,-500.0,0.00010973,2]
[380014052,1755475840092,-500.0,0.00010973,2]
[380014054,1755475840102,-500.0,0.00010973,2]
[380014056,1755475840111,-500.0,0.00010973,2]
[380014058,1755475840121,-588.48515479,0.00010973,2]
[380014060,1755475840130,-500.0,0.00010973,2]
[380014062,1755475840140,-500.0,0.00010973,2]
[380014064,1755475840149,-500.0,0.00010973,2]
[380014066,1755475840160,-150.0,0.00010975,2]
[380014068,1755475840170,-151.14384879,0.00010989,2]
[380014070,1755475840179,-500.0,0.00010989,2]
[380014072,1755475840189,-500.0,0.0001099,2]
[380014074,1755475840198,-150.0,0.00010997,2]
[380014076,1755475840207,-1000.0,0.00010999,2]
[380014078,1755475840216,-150.0,0.00010999,2]
[380014080,1755475840226,-1000.0,0.00010999,2]
[380014082,1755475840235,-1992.87537372,0.00010999,3]
[380014084,1755475840246,-2343578.47427316,0.00011,2]
[380014086,1755475840255,-11486389.88565895,0.00011,2]
[380014088,1755475840264,-410927.16,0.00011,2]
[380014090,1755475840274,-17009.78,0.00011,2]
[380014092,1755475840283,-1927.25098316,0.00011,2]
[380014094,1755475840292,-200.0,0.00011,2]
[380014096,1755475840302,-284157.71653299,0.00011,2]
[380014097,1755475840312,-3466.15302,0.00011,2]
[380014099,1755475840321,-3466.15302,0.00011,2]
[380014102,1755475840331,-3466.15302,0.00011,2]
[380014103,1755475840340,-3466.15302,0.00011,2]
[380014106,1755475840350,-3466.15301,0.00011,2]
[380014108,1755475840359,-1000.0,0.00011005,2]
[380014110,1755475840369,-1097.05,0.00011014,2]
[380014112,1755475840379,-4848.3137542,0.00011023,2]
[380014114,1755475840390,-186365.90182207,0.0001103,2]
[380014116,1755475840399,-346189.2169389,0.00011079,2]
[380014118,1755475840409,-150.0,0.00011088,2]
[380014120,1755475840418,-797.74538706,0.00011088,2]
[380014122,1755475840428,-1016.73431684,0.00011088,2]
[380014124,1755475840438,-1235.72324662,0.00011088,2]
[380014126,1755475840448,-1454.71217641,0.00011088,2]
[380014128,1755475840457,-1673.70110619,0.00011088,2]
[380014130,1755475840467,-1892.69003597,0.00011089,2]
[380014132,1755475840476,-2111.67896575,0.00011089,2]
[380014134,1755475840486,-2330.66789553,0.00011089,2]
[380014136,1755475840496,-2549.65682531,0.00011089,2]
[380014138,1755475840505,-41859.52486005,0.00011099,2]
[380014140,1755475840515,-41859.52485996,0.00011099,2]
[380014143,1755475840525,-41859.52485996,0.00011099,2]
[380014145,1755475840538,-41859.52485996,0.00011099,2]
[380014147,1755475840547,-41859.52485996,0.00011099,2]
[380014149,1755475840557,-41859.52485996,0.00011099,2]
[380014151,1755475840566,-41859.52485996,0.00011099,2]
[380014153,1755475840577,-41859.52485996,0.00011099,2]
[380014155,1755475840587,-41859.52485996,0.00011099,2]
[380014157,1755475840596,-41859.52485996,0.00011099,2]
[380014159,1755475840607,-19031.10138687,0.00011099,2]
[380014161,1755475840617,-19031.10138679,0.00011099,2]
[380014163,1755475840627,-19031.10138679,0.00011099,2]
[380014165,1755475840637,-19031.10138679,0.00011099,2]
[380014167,1755475840647,-19031.10138679,0.00011099,2]
[380014169,1755475840656,-19031.10138679,0.00011099,2]
[380014171,1755475840666,-19031.10138679,0.00011099,2]
[380014173,1755475840676,-19031.10138679,0.00011099,2]
[380014175,1755475840685,-19031.10138679,0.00011099,2]
[380014177,1755475840696,-19031.10138679,0.00011099,2]
[380014179,1755475840706,-200.0,0.0001111,2]
[380014181,1755475840715,-4837.76780434,0.00011179,2]
[380014183,1755475840725,-200.0,0.00011221,2]
[380014185,1755475840735,-300.0,0.0001126,2]
[380014187,1755475840745,-1077.89,0.0001126,2]
[380014189,1755475840755,-300.0,0.0001126,2]
[380014191,1755475840764,-173.52,0.0001126,2]
[380014193,1755475840774,-346.96,0.0001126,2]
[380014195,1755475840784,-165.94,0.0001126,2]
[380014197,1755475840794,-151.0,0.00011295,2]
[380014199,1755475840804,-778.0452643,0.00011311,2]
[380014201,1755475840814,-880.51,0.00011314,2]
[380014203,1755475840823,-200.0,0.00011333,2]
[380014205,1755475840834,-200.0,0.00011447,2]
[380014207,1755475840844,-8317.04024091,0.00011451,2]
[380014210,1755475840853,-500.0,0.00011451,2]
[380014212,1755475840863,-500.0,0.00011451,2]
[380014214,1755475840873,-500.0,0.00011451,2]
[380014216,1755475840882,-500.0,0.00011451,2]
[380014218,1755475840892,-500.0,0.00011451,2]
[380014220,1755475840901,-500.0,0.00011451,2]
[380014222,1755475840911,-300.0,0.00011451,2]
[380014224,1755475840920,-437.74999013,0.00011451,2]
[380014226,1755475840930,-160.0,0.00011451,2]
[380014228,1755475840939,-1000.0,0.00011451,2]
[380014229,1755475840949,-1000.0,0.00011451,2]
[380014231,1755475840959,-1000.0,0.00011451,2]
[380014234,1755475840968,-187.78006525,0.00011451,2]
[380014236,1755475840978,-1000.0,0.00011451,2]
[380014237,1755475840988,-1000.0,0.00011451,2]
[380014239,1755475840998,-1000.0,0.00011451,2]
[380014241,1755475841007,-1000.0,0.00011451,2]
[380014243,1755475841016,-1000.0,0.00011451,2]
[380014245,1755475841026,-1000.0,0.00011451,2]
[380014247,1755475841035,-3000.0,0.00011451,2]
[380014249,1755475841044,-200.0,0.00011451,2]
[380014282,1755475841351,-248.71531821,0.00011451,2]
[380014284,1755475841361,-1000.0,0.00011451,2]
[380014286,1755475841371,-200.0,0.00011451,2]
[380014288,1755475841380,-1000.0,0.00011451,2]
[380014290,1755475841390,-200.0,0.00011451,2]
[380014292,1755475841399,-1000.0,0.00011451,2]
[380014294,1755475841409,-151.0,0.00011451,2]
[380014296,1755475841418,-200.0,0.00011451,2]
[380014298,1755475841428,-1000.0,0.00011451,2]
[380014300,1755475841438,-200.0,0.00011451,2]
[380014302,1755475841447,-1000.0,0.00011451,2]
[380014304,1755475841457,-200.0,0.00011451,2]
[380014306,1755475841466,-200.0,0.00011451,2]
[380014308,1755475841476,-200.0,0.00011451,2]
[380014310,1755475841486,-200.0,0.00011451,2]
[380014312,1755475841496,-200.0,0.00011451,2]
[380014314,1755475841505,-200.0,0.00011451,2]
[380014316,1755475841515,-200.0,0.00011451,2]
[380014318,1755475841525,-200.0,0.00011451,2]
[380014320,1755475841538,-151.0,0.00011451,2]
[380014322,1755475841547,-200.0,0.00011451,2]
[380014324,1755475841557,-200.0,0.00011451,2]
[380014326,1755475841567,-200.0,0.00011451,2]
[380014328,1755475841578,-200.0,0.00011451,2]
[380014330,1755475841588,-200.0,0.00011451,2]
[380014332,1755475841599,-200.0,0.00011451,2]
[380014334,1755475841609,-200.0,0.00011451,2]
[380014336,1755475841618,-151.0,0.00011451,2]
[380014338,1755475841628,-151.0,0.00011451,2]
[380014340,1755475841637,-151.0,0.00011451,2]
[380014342,1755475841647,-151.0,0.00011451,2]
[380014344,1755475841658,-151.0,0.00011451,2]
[380014346,1755475841667,-151.0,0.00011451,2]
[380014348,1755475841677,-151.0,0.00011451,2]
[380014350,1755475841686,-151.0,0.00011451,2]
[380014352,1755475841696,-3000.0,0.00011451,2]
[380014354,1755475841706,-151.0,0.00011451,2]
[380014356,1755475841715,-3000.0,0.00011451,2]
[380014358,1755475841724,-151.0,0.00011451,2]
[380014360,1755475841734,-3000.0,0.00011451,2]
[380014362,1755475841744,-151.0,0.00011451,2]
[380014364,1755475841754,-500.0,0.00011451,2]
[380014366,1755475841764,-151.0,0.00011451,2]
[380014368,1755475841774,-500.0,0.00011451,2]
[380014370,1755475841783,-3000.0,0.00011451,2]
[380014372,1755475841793,-151.0,0.00011451,2]
[380014374,1755475841803,-500.0,0.00011451,2]
[380014376,1755475841814,-151.0,0.00011451,2]
[380014378,1755475841823,-3000.0,0.00011451,2]
[380014380,1755475841832,-151.0,0.00011451,2]
[380014382,1755475841841,-500.0,0.00011451,2]
[380014384,1755475841851,-3000.0,0.00011451,2]
[380014386,1755475841860,-500.0,0.00011451,2]
[380014388,1755475841870,-3000.0,0.00011451,2]
[380014390,1755475841879,-500.0,0.00011451,2]
[380014392,1755475841889,-3000.0,0.00011451,2]
[380014394,1755475841899,-3000.0,0.00011451,2]
[380014396,1755475841908,-500.0,0.00011451,2]
[380014398,1755475841918,-500.0,0.00011451,2]
[380014400,1755475841928,-3000.0,0.00011451,2]
[380014402,1755475841938,-500.0,0.00011451,2]
[380014404,1755475841948,-3000.0,0.00011451,2]
[380014406,1755475841958,-500.0,0.00011451,2]
[380014408,1755475841968,-1396.07189848,0.00011451,2]
[380014410,1755475841978,-500.0,0.00011451,2]
[380014413,1755475842004,-500.0,0.00011451,2]
[380014414,1755475842035,-500.0,0.00011451,2]
[380014416,1755475842048,-500.0,0.00011451,2]
[380014417,1755475842060,-250.0,0.00011491,2]
[380014418,1755475842072,-300.0,0.00011491,2]
[380014420,1755475842083,-250.0,0.00011491,2]
[380014422,1755475842092,-150.0,0.00011491,4]
[380014424,1755475842102,-300.0,0.00011491,2]
[380014426,1755475842112,-300.0,0.00011491,2]
[380014428,1755475842122,-8624.77072982,0.00011506,2]
[380014430,1755475842131,-2751.0,0.00011507,2]
[380014432,1755475842141,-1000.0,0.00011521,2]
[380014434,1755475842151,-1000.0,0.00011521,2]
[380014436,1755475842161,-1000.0,0.00011521,2]
[380014438,1755475842170,-1000.0,0.00011521,2]
[380014440,1755475842180,-1000.0,0.00011521,2]
[380014442,1755475842189,-1000.0,0.00011521,2]
[380014444,1755475842199,-160.02721747,0.00011521,2]
[380014446,1755475842208,-1000.0,0.00011521,2]
[380014448,1755475842218,-1000.0,0.00011521,2]
[380014450,1755475842228,-500.0,0.00011521,2]
[380014452,1755475842237,-1000.0,0.00011521,2]
[380014454,1755475842248,-1000.0,0.00011521,2]
[380014456,1755475842258,-1000.0,0.00011521,2]
[380014458,1755475842267,-737.07927093,0.00011521,2]
[380014460,1755475842277,-1000.0,0.00011521,2]
[380014462,1755475842286,-1000.0,0.00011521,2]
[380014464,1755475842296,-1000.0,0.00011521,2]
[380014466,1755475842309,-1000.0,0.00011521,2]
[380014468,1755475842319,-812.47721035,0.00011553,2]
[380014470,1755475842328,-8943.88724682,0.00011561,2]
[380014472,1755475842338,-9274.81107495,0.00011616,2]
[380014474,1755475842348,-500.0,0.00011644,2]
[380014476,1755475842358,-9617.97908473,0.00011671,2]
[380014478,1755475842368,-346189.2169389,0.00011706,2]
[380014480,1755475842378,-200.0,0.00011717,2]
[380014483,1755475842388,-806.31130072,0.00011718,4]
[380014485,1755475842398,-9973.84431086,0.00011726,2]
[380014487,1755475842408,-1680.0,0.00011769,2]
[380014489,1755475842418,-10342.87655036,0.00011781,2]
[380014491,1755475842427,-2037.0,0.00011799,2]
[380014493,1755475842437,-324.3,0.00011812,2]
[380014495,1755475842446,-10725.56298273,0.00011836,2]
[380014497,1755475842456,-203.28140911,0.00011843,2]
[380014499,1755475842465,-1900.0,0.0001188,2]
[380014500,1755475842475,-11122.40881309,0.00011891,2]
[380014501,1755475842484,-3696.30758743,0.00011946,2]
[380014502,1755475842494,-151.0,0.00011999,2]
[380014503,1755475842503,-151.0,0.00011999,2]
[380014504,1755475842512,-200.0,0.00012,2]
[380014505,1755475842522,-4449.40743349,0.0001202,2]
[380014506,1755475842535,-1450.0,0.00012068,2]
[380014507,1755475842545,-1500.0,0.00012068,2]
[380014508,1755475842556,-1500.0,0.00012068,2]
[380014509,1755475842567,-1500.0,0.00012068,2]
[380014510,1755475842578,-1214.41770928,0.00012068,2]
[380014511,1755475842587,-1500.0,0.00012068,2]
[380014513,1755475842596,-1500.0,0.00012068,2]
[380014515,1755475842607,-992.14671886,0.00012068,2]
[380014516,1755475842617,-1500.0,0.00012068,2]
[380014518,1755475842626,-1500.0,0.00012068,2]
[380014521,1755475842636,-1121.87886955,0.00012068,2]
[380014522,1755475842645,-1500.0,0.00012068,2]
[380014525,1755475842656,-1500.0,0.00012068,2]
[380014527,1755475842666,-1500.0,0.00012068,2]
[380014529,1755475842676,-259.72620775,0.00012086,5]
[380014530,1755475842685,-155.0,0.00012099,2]
[380014533,1755475842696,-2029.0,0.00012185,2]
[380014535,1755475842705,-990.658,0.00012185,2]
[380014536,1755475842715,-3371.0,0.00012185,2]
[380014539,1755475842725,-1255.0,0.00012185,2]
[380014541,1755475842736,-1656.0,0.00012185,2]
[380014543,1755475842746,-599.0,0.00012185,2]
[380014544,1755475842758,-572.335,0.00012185,2]
[380014546,1755475842768,-1297.0,0.00012185,2]
[380014548,1755475842778,-894.0,0.00012185,2]
[380014550,1755475842787,-1172.0,0.00012185,2]
[380014552,1755475842797,-717.0,0.00012185,2]
[380014555,1755475842807,-2235.0,0.00012185,2]
[380014556,1755475842817,-4151.0,0.00012185,2]
[380014558,1755475842826,-6090.0,0.00012185,2]
[380014560,1755475842835,-1000.0,0.00012228,2]
[380014562,1755475842845,-806.31130072,0.00012257,5]
[380014564,1755475842855,-250.0,0.00012295,2]
[380014567,1755475842865,-150.0,0.00012304,5]
[380014569,1755475842874,-150.0,0.00012304,5]
[380014571,1755475842884,-346189.2169389,0.00012334,2]
[380014573,1755475842893,-151.0,0.00012334,2]
[380014575,1755475842902,-153.565228,0.00012334,2]
[380014577,1755475842912,-151.0,0.00012334,2]
[380014579,1755475842922,-197.97375,0.00012334,2]
[380014583,1755475842932,-197.97375,0.00012334,2]
[380014586,1755475842941,-151.180582,0.00012334,2]
[380014590,1755475842950,-283.60233,0.00012334,2]
[380014594,1755475842959,-283.60233,0.00012334,2]
[380014597,1755475842969,-151.0,0.00012334,2]
[380014600,1755475842979,-151.0,0.00012334,2]
[380014604,1755475842989,-151.0,0.00012334,2]
[380014607,1755475842999,-151.0,0.00012334,2]
[380014609,1755475843008,-152.243426,0.00012334,2]
[380014611,1755475843018,-151.0,0.00012334,2]
[380014613,1755475843028,-151.0,0.00012334,2]
[380014615,1755475843037,-151.0,0.00012334,2]
[380014617,1755475843047,-151.0,0.00012334,2]
[380014619,1755475843057,-151.0,0.00012334,2]
[380014620,1755475843066,-151.0,0.00012334,2]
[380014623,1755475843077,-151.0,0.00012334,2]
[380014625,1755475843087,-186.101228,0.00012334,2]
[380014626,1755475843096,-151.0,0.00012334,2]
[380014628,1755475843106,-151.0,0.00012334,2]
[380014630,1755475843115,-151.0,0.00012334,2]
[380014632,1755475843125,-151.0,0.00012334,2]
[380014634,1755475843135,-151.0,0.00012334,2]
[380014636,1755475843144,-151.0,0.00012334,2]
[380014638,1755475843154,-151.0,0.00012334,2]
[380014640,1755475843163,-164.066058,0.00012334,2]
[380014642,1755475843173,-164.066058,0.00012334,2]
[380014645,1755475843183,-151.320995,0.00012334,2]
[380014647,1755475843193,-160.181318,0.00012334,2]
[380014648,1755475843202,-160.181318,0.00012334,2]
[380014650,1755475843211,-151.0,0.00012334,2]
[380014652,1755475843221,-151.0,0.00012334,2]
[380014654,1755475843230,-151.0,0.00012334,2]
[380014656,1755475843240,-151.0,0.00012334,2]
[380014659,1755475843251,-226.528153,0.00012334,2]
[380014660,1755475843260,-226.528153,0.00012334,2]
[380014663,1755475843270,-151.0,0.00012334,2]
[380014664,1755475843280,-151.0,0.00012334,2]
[380014666,1755475843290,-151.0,0.00012334,2]
[380014668,1755475843300,-151.0,0.00012334,2]
[380014671,1755475843310,-151.0,0.00012334,2]
[380014672,1755475843320,-151.0,0.00012334,2]
[380014674,1755475843328,-151.0,0.00012334,2]
[380014676,1755475843338,-151.0,0.00012334,2]
[380014678,1755475843347,-151.0,0.00012334,2]
[380014680,1755475843356,-809.890266,0.00012334,2]
[380014682,1755475843366,-151.0,0.00012334,2]
[380014684,1755475843376,-809.890266,0.00012334,2]
[380014686,1755475843386,-151.0,0.00012334,2]
[380014688,1755475843395,-218.195133,0.00012334,2]
[380014690,1755475843405,-151.0,0.00012334,2]
[380014692,1755475843414,-151.0,0.00012334,2]
[380014694,1755475843424,-151.0,0.00012334,2]
[380014696,1755475843434,-151.0,0.00012334,2]
[380014698,1755475843444,-151.0,0.00012334,2]
[380014700,1755475843453,-151.0,0.00012334,2]
[380014702,1755475843463,-151.0,0.00012334,2]
[380014704,1755475843473,-369.189926,0.00012334,2]
[380014706,1755475843483,-369.189926,0.00012334,2]
[380014708,1755475843493,-681.660797,0.00012334,2]
[380014710,1755475843502,-151.0,0.00012334,2]
[380014712,1755475843510,-681.660797,0.00012334,2]
[380014714,1755475843520,-151.0,0.00012334,2]
[380014716,1755475843530,-1134.545064,0.00012334,2]
[380014718,1755475843540,-1134.545064,0.00012334,2]
[380014720,1755475843551,-279.114384,0.00012334,2]
[380014722,1755475843561,-153.540377,0.00012334,2]
[380014724,1755475843570,-279.114384,0.00012334,2]
[380014726,1755475843582,-153.540377,0.00012334,2]